[Event "VI Sunway Sitges Open 2019"]
[Site "Sitges"]
[Date "2019.12.17"]
[Round "5.18"]
[White "Heimann, Andreas"]
[Black "Karthik Venkataraman"]
[Result "1-0"]
[ECO "E90"]
[WhiteElo "2617"]
[BlackElo "2470"]
[Annotator "ChessBase"]
[PlyCount "59"]
[EventDate "2019.12.13"]
[EventType "swiss"]
[EventCountry "ESP"]
[SourceTitle "playchess.com"]
[Source "ChessBase"]
[SourceQuality "1"]
[TimeControl "40/5400+30:1800+30"]

1. d4 {[%emt 0:00:00]} Nf6 {[%emt 0:00:17]} 2. c4 {[%emt 0:00:00]} c5 {[%emt 0:00:25]} 3. d5 {[%emt 0:00:15]} g6 {[%emt 0:00:07]} 4. Nc3 {[%emt 0:00:14]} Bg7 {[%emt 0:00:05]} 5. e4 {[%emt 0:00:05]} d6 {[%emt 0:00:04]} 6. h3 {[%emt 0:00:35]} O-O {[%emt 0:00:06]} 7. Nf3 {[%emt 0:00:07]} e6 {[%emt 0:00:05]} 8. Bd3 {[%emt 0:00:04]} Nbd7 {[%emt 0:00:24]} 9. Be3 {[%emt 0:05:07]} a6 {[%emt 0:06:06]} 10. a4 {[%emt 0:02:36]} exd5 {[%emt 0:04:07]} 11. exd5 {[%emt 0:01:38]} Re8 {[%emt 0:00:08]} 12. O-O {[%emt 0:00:12]} Nh5 {[%emt 0:00:07]} 13. Re1 {[%emt 0:09:32]} Ne5 {[%emt 0:01:11]} 14. Be2 {[%emt 0:07:50]} Bd7 {[%emt 0:09:24]} 15. Qd2 {[%emt 0:05:27]} Nxf3+ {[%emt 0:13:34]} 16. Bxf3 {[%emt 0:00:41]} Nf6 {[%emt 0:00:08]} 17. Bg5 {[%emt 0:05:00]} Qb6 {[%emt 0:15:05]} 18. a5 {[%emt 0:07:40]} Rxe1+ {[%emt 0:26:09]} 19. Rxe1 {[%emt 0:02:42]} Qxa5 {[%emt 0:03:45]} 20. Qf4 {[%emt 0:01:19]} Qd8 {[%emt 0:04:11]} 21. Qxd6 {[%emt 0:09:41]} h6 {[%emt 0:00:48]} 22. Bxf6 {[%emt 0:12:34]} Bxf6 {[%emt 0:00:07]} 23. Qxc5 {[%emt 0:00:04]} Rc8 {[%emt 0:00:06]} 24. Qb4 {[%emt 0:00:03]} a5 {[%emt 0:00:15]} 25. Qxb7 {[%emt 0:01:44]} Rxc4 {[%emt 0:01:13]} 26. d6 {[%emt 0:02:00]} Rb4 {[%emt 0:08:56]} 27. Qc7 {[%emt 0:02:04]} Qxc7 {[%emt 0:05:40]} 28. dxc7 {[%emt 0:00:06]} Bxc3 {[%emt 0:00:04]} 29. Re7 {[%emt 0:00:55]} Bf5 {[%emt 0:01:19]} 30. g4 {[%emt 0:02:43]} 1-0

[Event "VI Sunway Sitges Open 2019"]
[Site "Sitges"]
[Date "2019.12.17"]
[Round "5.19"]
[White "Yankelevich, Lev"]
[Black "Petrosyan, Manuel"]
[Result "1/2-1/2"]
[ECO "D85"]
[WhiteElo "2472"]
[BlackElo "2613"]
[Annotator "ChessBase"]
[PlyCount "28"]
[EventDate "2019.12.13"]
[EventType "swiss"]
[EventCountry "ESP"]
[SourceTitle "playchess.com"]
[Source "ChessBase"]
[SourceQuality "1"]
[TimeControl "40/5400+30:1800+30"]

1. d4 {[%emt 0:00:00]} Nf6 {[%emt 0:01:22]} 2. c4 {[%emt 0:00:00]} g6 {[%emt 0:00:06]} 3. Nc3 {[%emt 0:00:00]} d5 {[%emt 0:00:05]} 4. cxd5 {[%emt 0:01:06]} Nxd5 {[%emt 0:00:06]} 5. e4 {[%emt 0:00:06]} Nxc3 {[%emt 0:00:07]} 6. bxc3 {[%emt 0:00:02]} Bg7 {[%emt 0:00:09]} 7. Nf3 {[%emt 0:00:49]} c5 {[%emt 0:00:16]} 8. Be3 {[%emt 0:00:04]} Qa5 {[%emt 0:00:25]} 9. Nd2 {[%emt 0:00:07]} Bd7 {[%emt 0:03:26]} 10. Nb3 {[%emt 0:00:26]} Qxc3+ {[%emt 0:00:07]} 11. Bd2 {[%emt 0:00:02]} Qb2 {[%emt 0:00:09]} 12. Bc1 {[%emt 0:00:02]} Qc3+ {[%emt 0:00:06]} 13. Bd2 {[%emt 0:00:01]} Qb2 {[%emt 0:00:06]} 14. Bc1 {[%emt 0:00:05]} Qc3+ {[%emt 0:00:05]} 1/2-1/2

[Event "VI Sunway Sitges Open 2019"]
[Site "Sitges"]
[Date "2019.12.17"]
[Round "5.20"]
[White "Nihal Sarin"]
[Black "Diaz Camallonga, Carles"]
[Result "1-0"]
[ECO "D31"]
[WhiteElo "2612"]
[BlackElo "2468"]
[Annotator "ChessBase"]
[PlyCount "105"]
[EventDate "2019.12.13"]
[EventType "swiss"]
[EventCountry "ESP"]
[SourceTitle "playchess.com"]
[Source "ChessBase"]
[SourceQuality "1"]
[TimeControl "40/5400+30:1800+30"]

1. d4 {[%emt 0:00:29]} e6 {[%emt 0:00:00]} 2. c4 {[%emt 0:00:06]} d5 {[%emt 0:00:00]} 3. Nc3 {[%emt 0:02:40]} Be7 {[%emt 0:00:00]} 4. cxd5 {[%emt 0:02:47]} exd5 {[%emt 0:00:00]} 5. Bf4 {[%emt 0:00:05]} c6 {[%emt 0:00:10]} 6. Qc2 {[%emt 0:00:37]} g6 {[%emt 0:08:26]} 7. e3 {[%emt 0:04:33]} Bf5 {[%emt 0:01:02]} 8. Bd3 {[%emt 0:03:12]} Bxd3 {[%emt 0:00:10]} 9. Qxd3 {[%emt 0:00:02]} Nf6 {[%emt 0:03:30]} 10. Nge2 {[%emt 0:03:54]} Na6 {[%emt 0:07:24]} 11. O-O {[%emt 0:02:00]} O-O {[%emt 0:01:21]} 12. Rad1 {[%emt 0:08:09]} Nb4 {[%emt 0:21:31]} 13. Qb1 {[%emt 0:00:55]} Nh5 {[%emt 0:00:29]} 14. Be5 {[%emt 0:07:34]} f6 {[%emt 0:05:51]} 15. Bg3 {[%emt 0:04:50]} a5 {[%emt 0:02:31]} 16. a3 {[%emt 0:03:53]} Na6 {[%emt 0:00:05]} 17. e4 {[%emt 0:02:36]} f5 {[%emt 0:09:37]} 18. exf5 {[%emt 0:11:45]} gxf5 {[%emt 0:03:14]} 19. Be5 {[%emt 0:10:39]} Bd6 {[%emt 0:00:09]} 20. f4 {[%emt 0:00:44]} Bxe5 {[%emt 0:01:33]} 21. fxe5 {[%emt 0:06:49]} Qg5 {[%emt 0:00:10]} 22. Rd3 {[%emt 0:03:19]} Nc7 {[%emt 0:06:57]} 23. Nf4 {[%emt 0:01:54]} Kh8 {[%emt 0:01:42]} 24. Nce2 {[%emt 0:00:40]} Rg8 {[%emt 0:05:01]} 25. Rf2 {[%emt 0:00:10]} Nxf4 {[%emt 0:04:24]} 26. Nxf4 {[%emt 0:00:05]} Raf8 {[%emt 0:00:24]} 27. Qe1 {[%emt 0:01:14]} Qe7 {[%emt 0:03:25]} 28. Qxa5 {[%emt 0:06:26]} Ne6 {[%emt 0:02:06]} 29. Nxe6 {[%emt 0:00:24]} Qxe6 {[%emt 0:00:04]} 30. Qd2 {[%emt 0:00:24]} Rg4 {[%emt 0:01:11]} 31. Rdf3 {[%emt 0:05:16]} Re4 {[%emt 0:01:59]} 32. h3 {[%emt 0:02:01]} c5 {[%emt 0:02:16]} 33. dxc5 {[%emt 0:02:21]} Qxe5 {[%emt 0:00:05]} 34. Rf4 {[%emt 0:00:23]} Kg8 {[%emt 0:05:33]} 35. g3 {[%emt 0:01:18]} d4 {[%emt 0:01:29]} 36. b4 {[%emt 0:01:00]} Rf7 {[%emt 0:00:27]} 37. Kh2 {[%emt 0:01:04]} Qd5 {[%emt 0:01:28]} 38. Qa2 {[%emt 0:01:40]} Qxa2 {[%emt 0:00:53]} 39. Rxa2 {[%emt 0:00:01]} d3 {[%emt 0:01:26]} 40. Kg2 {[%emt 0:00:00]} Rd7 {[%emt 0:00:00]} 41. Rd2 {[%emt 0:05:39]} Rxf4 {[%emt 0:10:09]} 42. gxf4 {[%emt 0:00:15]} Kf8 {[%emt 0:00:04]} 43. Kf3 {[%emt 0:01:20]} Rd4 {[%emt 0:00:04]} 44. Ke3 {[%emt 0:04:42]} Re4+ {[%emt 0:00:04]} 45. Kxd3 {[%emt 0:00:16]} Rxf4 {[%emt 0:00:04]} 46. Ke3 {[%emt 0:04:22]} Rh4 {[%emt 0:00:13]} 47. Rd7 {[%emt 0:00:17]} Ke8 {[%emt 0:00:08]} 48. Rxb7 {[%emt 0:00:06]} Rxh3+ {[%emt 0:00:03]} 49. Kd4 {[%emt 0:01:30]} Rxa3 {[%emt 0:00:17]} 50. c6 {[%emt 0:00:26]} Kd8 {[%emt 0:00:14]} 51. Rxh7 {[%emt 0:00:20]} f4 {[%emt 0:00:18]} 52. Kc5 {[%emt 0:00:13]} Rc3+ {[%emt 0:00:30]} 53. Kb6 {[%emt 0:00:11]} 1-0

[Event "VI Sunway Sitges Open 2019"]
[Site "Sitges"]
[Date "2019.12.17"]
[Round "5.21"]
[White "Salgado Lopez, Ivan"]
[Black "Parvanyan, Ashot"]
[Result "1/2-1/2"]
[ECO "A48"]
[WhiteElo "2605"]
[BlackElo "2456"]
[Annotator "ChessBase"]
[PlyCount "61"]
[EventDate "2019.12.13"]
[EventType "swiss"]
[EventCountry "ESP"]
[SourceTitle "playchess.com"]
[Source "ChessBase"]
[SourceQuality "1"]
[TimeControl "40/5400+30:1800+30"]

1. Nf3 {[%emt 0:00:00]} Nf6 {[%emt 0:00:00]} 2. d4 {[%emt 0:00:00]} g6 {[%emt 0:00:20]} 3. Bg5 {[%emt 0:00:00]} Bg7 {[%emt 0:00:17]} 4. Nbd2 {[%emt 0:00:05]} O-O {[%emt 0:02:04]} 5. c3 {[%emt 0:00:09]} d6 {[%emt 0:04:00]} 6. e4 {[%emt 0:00:53]} h6 {[%emt 0:06:53]} 7. Be3 {[%emt 0:02:45]} e5 {[%emt 0:08:55]} 8. dxe5 {[%emt 0:00:58]} dxe5 {[%emt 0:02:25]} 9. h3 {[%emt 0:08:05]} Qe7 {[%emt 0:05:50]} 10. Be2 {[%emt 0:00:11]} Nh5 {[%emt 0:01:13]} 11. g3 {[%emt 0:00:43]} Nd7 {[%emt 0:07:50]} 12. Nh2 {[%emt 0:03:59]} Nhf6 {[%emt 0:01:09]} 13. Qc2 {[%emt 0:06:00]} a5 {[%emt 0:06:29]} 14. a4 {[%emt 0:03:43]} Nc5 {[%emt 0:03:54]} 15. Ng4 {[%emt 0:00:42]} Kh7 {[%emt 0:04:43]} 16. Nxf6+ {[%emt 0:00:24]} Bxf6 {[%emt 0:00:05]} 17. h4 {[%emt 0:00:08]} Bg7 {[%emt 0:01:09]} 18. h5 {[%emt 0:03:16]} g5 {[%emt 0:02:04]} 19. Nb3 {[%emt 0:04:41]} Nxb3 {[%emt 0:02:31]} 20. Qxb3 {[%emt 0:00:12]} b6 {[%emt 0:04:13]} 21. g4 {[%emt 0:07:15]} Be6 {[%emt 0:00:09]} 22. Qb5 {[%emt 0:03:15]} Rfd8 {[%emt 0:04:40]} 23. f3 {[%emt 0:03:23]} Qd7 {[%emt 0:07:03]} 24. Qxd7 {[%emt 0:06:52]} Rxd7 {[%emt 0:00:15]} 25. Bb5 {[%emt 0:00:23]} Rd6 {[%emt 0:00:56]} 26. Rh2 {[%emt 0:00:48]} Bf8 {[%emt 0:01:21]} 27. Rd2 {[%emt 0:02:57]} Kg7 {[%emt 0:05:24]} 28. Rxd6 {[%emt 0:08:42]} Bxd6 {[%emt 0:00:11]} 29. Rd1 {[%emt 0:00:15]} Rd8 {[%emt 0:00:52]} 30. Be2 {[%emt 0:05:52]} Bb3 {[%emt 0:03:25]} 31. Ra1 {[%emt 0:00:10]} 1/2-1/2

[Event "VI Sunway Sitges Open 2019"]
[Site "Sitges"]
[Date "2019.12.17"]
[Round "5.22"]
[White "Svane, Rasmus"]
[Black "Haldorsen, Benjamin"]
[Result "1/2-1/2"]
[ECO "A75"]
[WhiteElo "2597"]
[BlackElo "2455"]
[Annotator "ChessBase"]
[PlyCount "106"]
[EventDate "2019.12.13"]
[EventType "swiss"]
[EventCountry "ESP"]
[SourceTitle "playchess.com"]
[Source "ChessBase"]
[SourceQuality "1"]
[TimeControl "40/5400+30:1800+30"]

1. d4 {[%emt 0:00:00]} Nf6 {[%emt 0:00:00]} 2. c4 {[%emt 0:00:00]} c5 {[%emt 0:00:00]} 3. d5 {[%emt 0:00:00]} e6 {[%emt 0:00:07]} 4. Nc3 {[%emt 0:00:17]} exd5 {[%emt 0:00:11]} 5. cxd5 {[%emt 0:00:07]} d6 {[%emt 0:00:05]} 6. e4 {[%emt 0:04:33]} g6 {[%emt 0:00:05]} 7. Nf3 {[%emt 0:00:20]} a6 {[%emt 0:00:36]} 8. a4 {[%emt 0:01:40]} Bg4 {[%emt 0:00:29]} 9. Be2 {[%emt 0:01:28]} Bxf3 {[%emt 0:00:54]} 10. Bxf3 {[%emt 0:00:07]} Bg7 {[%emt 0:00:55]} 11. Bf4 {[%emt 0:05:14]} O-O {[%emt 0:01:44]} 12. O-O {[%emt 0:00:07]} Ne8 {[%emt 0:03:15]} 13. a5 {[%emt 0:12:12]} Nd7 {[%emt 0:01:16]} 14. Re1 {[%emt 0:05:16]} Be5 {[%emt 0:13:13]} 15. Bxe5 {[%emt 0:05:10]} Nxe5 {[%emt 0:00:29]} 16. Be2 {[%emt 0:00:07]} g5 {[%emt 0:01:57]} 17. Qb3 {[%emt 0:20:17]} Rb8 {[%emt 0:12:33]} 18. Nd1 {[%emt 0:15:22]} Ng7 {[%emt 0:15:48]} 19. Ne3 {[%emt 0:00:03]} f5 {[%emt 0:00:52]} 20. exf5 {[%emt 0:04:48]} Nxf5 {[%emt 0:01:07]} 21. Nxf5 {[%emt 0:00:03]} Rxf5 {[%emt 0:00:03]} 22. Rf1 {[%emt 0:03:40]} Rf4 {[%emt 0:06:41]} 23. Ra4 {[%emt 0:02:02]} b5 {[%emt 0:09:10]} 24. axb6 {[%emt 0:04:31]} Rxb6 {[%emt 0:03:24]} 25. Qa3 {[%emt 0:00:31]} Rxa4 {[%emt 0:01:30]} 26. Qxa4 {[%emt 0:00:04]} Rxb2 {[%emt 0:01:31]} 27. Bxa6 {[%emt 0:04:02]} Qa8 {[%emt 0:03:45]} 28. Qa3 {[%emt 0:02:49]} Rb6 {[%emt 0:02:15]} 29. Ra1 {[%emt 0:00:07]} Qxd5 {[%emt 0:01:59]} 30. Bf1 {[%emt 0:01:00]} Rb8 {[%emt 0:02:35]} 31. Qg3 {[%emt 0:01:30]} Kh8 {[%emt 0:03:58]} 32. Qh3 {[%emt 0:02:54]} Rf8 {[%emt 0:02:20]} 33. Qc3 {[%emt 0:03:05]} Qf7 {[%emt 0:01:43]} 34. Qc2 {[%emt 0:01:30]} Qf5 {[%emt 0:01:43]} 35. Qe2 {[%emt 0:00:26]} Ng6 {[%emt 0:05:08]} 36. Rd1 {[%emt 0:00:39]} d5 {[%emt 0:01:29]} 37. Qb2+ {[%emt 0:01:39]} d4 {[%emt 0:00:06]} 38. Bd3 {[%emt 0:00:25]} Qg4 {[%emt 0:01:24]} 39. f3 {[%emt 0:00:34]} Qe6 {[%emt 0:01:02]} 40. Qb7 {[%emt 0:00:00]} c4 {[%emt 0:00:00]} 41. Be4 {[%emt 0:03:58]} d3 {[%emt 0:05:45]} 42. Qb4 {[%emt 0:03:08]} Kg7 {[%emt 0:04:51]} 43. Qc5 {[%emt 0:06:17]} Rc8 {[%emt 0:08:23]} 44. Qxg5 {[%emt 0:06:59]} Qb6+ {[%emt 0:01:06]} 45. Kh1 {[%emt 0:02:11]} Qd4 {[%emt 0:02:37]} 46. Qg4 {[%emt 0:05:29]} Rc5 {[%emt 0:02:38]} 47. h3 {[%emt 0:02:11]} Ra5 {[%emt 0:02:53]} 48. Bxd3 {[%emt 0:02:33]} Qxg4 {[%emt 0:00:27]} 49. hxg4 {[%emt 0:00:29]} cxd3 {[%emt 0:00:02]} 50. Rxd3 {[%emt 0:00:09]} Ra2 {[%emt 0:00:27]} 51. Rd7+ {[%emt 0:00:26]} Kh6 {[%emt 0:00:34]} 52. g5+ {[%emt 0:00:29]} Kxg5 {[%emt 0:00:25]} 53. Rxh7 {[%emt 0:00:05]} Nf4 {[%emt 0:01:10]} 1/2-1/2

[Event "VI Sunway Sitges Open 2019"]
[Site "Sitges"]
[Date "2019.12.17"]
[Round "5.23"]
[White "Real De Azua, Ernesto"]
[Black "Liang, Awonder"]
[Result "0-1"]
[ECO "E52"]
[WhiteElo "2450"]
[BlackElo "2593"]
[Annotator "ChessBase"]
[PlyCount "98"]
[EventDate "2019.12.13"]
[EventType "swiss"]
[EventCountry "ESP"]
[SourceTitle "playchess.com"]
[Source "ChessBase"]
[SourceQuality "1"]
[TimeControl "40/5400+30:1800+30"]

1. d4 {[%emt 0:00:00]} Nf6 {[%emt 0:06:38]} 2. c4 {[%emt 0:03:10]} e6 {[%emt 0:00:07]} 3. Nc3 {[%emt 0:00:26]} Bb4 {[%emt 0:00:08]} 4. e3 {[%emt 0:00:05]} O-O {[%emt 0:00:08]} 5. Bd3 {[%emt 0:00:06]} d5 {[%emt 0:00:08]} 6. Nf3 {[%emt 0:00:09]} b6 {[%emt 0:01:07]} 7. cxd5 {[%emt 0:02:35]} exd5 {[%emt 0:00:11]} 8. O-O {[%emt 0:00:06]} Bb7 {[%emt 0:00:08]} 9. a3 {[%emt 0:01:21]} Bd6 {[%emt 0:00:54]} 10. b4 {[%emt 0:00:21]} Nbd7 {[%emt 0:01:29]} 11. Qb3 {[%emt 0:02:04]} a6 {[%emt 0:01:19]} 12. a4 {[%emt 0:09:24]} Re8 {[%emt 0:00:14]} 13. Ba3 {[%emt 0:01:15]} Ne4 {[%emt 0:17:49]} 14. b5 {[%emt 0:14:30]} axb5 {[%emt 0:03:35]} 15. axb5 {[%emt 0:01:48]} Ndf6 {[%emt 0:06:31]} 16. Bxd6 {[%emt 0:01:26]} Qxd6 {[%emt 0:00:10]} 17. h3 {[%emt 0:10:00]} Qe7 {[%emt 0:12:27]} 18. Qb2 {[%emt 0:11:28]} h6 {[%emt 0:04:59]} 19. Rxa8 {[%emt 0:07:16]} Rxa8 {[%emt 0:00:26]} 20. Ra1 {[%emt 0:00:16]} Rxa1+ {[%emt 0:04:18]} 21. Qxa1 {[%emt 0:00:06]} Qb4 {[%emt 0:00:06]} 22. Ne2 {[%emt 0:02:57]} Qb3 {[%emt 0:00:55]} 23. Ne5 {[%emt 0:05:55]} Nd6 {[%emt 0:10:18]} 24. Qc1 {[%emt 0:04:41]} Nfe8 {[%emt 0:01:04]} 25. Qc3 {[%emt 0:05:26]} Qa4 {[%emt 0:03:50]} 26. Qb2 {[%emt 0:02:37]} Nc4 {[%emt 0:05:25]} 27. Nxc4 {[%emt 0:06:40]} dxc4 {[%emt 0:00:08]} 28. Nc3 {[%emt 0:01:01]} Qa8 {[%emt 0:00:18]} 29. Bf1 {[%emt 0:01:18]} Nd6 {[%emt 0:00:24]} 30. f3 {[%emt 0:00:09]} Qd8 {[%emt 0:01:01]} 31. e4 {[%emt 0:05:14]} Qg5 {[%emt 0:01:06]} 32. Kf2 {[%emt 0:00:55]} Qf4 {[%emt 0:13:57]} 33. Ke2 {[%emt 0:01:07]} Qh2 {[%emt 0:01:03]} 34. Qd2 {[%emt 0:00:23]} Bc8 {[%emt 0:00:26]} 35. Ke1 {[%emt 0:00:41]} Bd7 {[%emt 0:00:18]} 36. g4 {[%emt 0:00:31]} Qg3+ {[%emt 0:01:05]} 37. Qf2 {[%emt 0:00:04]} Qf4 {[%emt 0:00:03]} 38. Ne2 {[%emt 0:00:51]} Qg5 {[%emt 0:00:04]} 39. e5 {[%emt 0:00:34]} Nxb5 {[%emt 0:00:08]} 40. f4 {[%emt 0:00:00]} Qe7 {[%emt 0:00:00]} 41. Qe3 {[%emt 0:01:51]} Qb4+ {[%emt 0:02:21]} 42. Kf2 {[%emt 0:00:19]} c3 {[%emt 0:00:16]} 43. f5 {[%emt 0:02:24]} c2 {[%emt 0:07:17]} 44. d5 {[%emt 0:04:51]} Qb2 {[%emt 0:03:00]} 45. e6 {[%emt 0:02:43]} Be8 {[%emt 0:00:12]} 46. Qc1 {[%emt 0:01:28]} Qb3 {[%emt 0:02:47]} 47. Bg2 {[%emt 0:00:34]} Nc3 {[%emt 0:03:17]} 48. Nxc3 {[%emt 0:02:00]} Qxc3 {[%emt 0:00:05]} 49. Be4 {[%emt 0:00:10]} Qd4+ {[%emt 0:00:08]} 0-1

[Event "VI Sunway Sitges Open 2019"]
[Site "Sitges"]
[Date "2019.12.17"]
[Round "5.24"]
[White "Martin Duque, Jesus"]
[Black "Wagner, Dennis"]
[Result "0-1"]
[ECO "C77"]
[WhiteElo "2430"]
[BlackElo "2578"]
[Annotator "ChessBase"]
[PlyCount "80"]
[EventDate "2019.12.13"]
[EventType "swiss"]
[EventCountry "ESP"]
[SourceTitle "playchess.com"]
[Source "ChessBase"]
[SourceQuality "1"]
[TimeControl "40/5400+30:1800+30"]

1. e4 {[%emt 0:04:56]} e5 {[%emt 0:00:00]} 2. Nf3 {[%emt 0:00:05]} Nc6 {[%emt 0:00:00]} 3. Bb5 {[%emt 0:00:04]} a6 {[%emt 0:00:10]} 4. Ba4 {[%emt 0:00:05]} Nf6 {[%emt 0:00:07]} 5. Bxc6 {[%emt 0:00:05]} dxc6 {[%emt 0:00:38]} 6. d3 {[%emt 0:00:07]} Bd6 {[%emt 0:09:48]} 7. Nbd2 {[%emt 0:00:11]} Nd7 {[%emt 0:08:29]} 8. Nc4 {[%emt 0:04:28]} O-O {[%emt 0:12:35]} 9. O-O {[%emt 0:01:03]} Re8 {[%emt 0:00:24]} 10. b3 {[%emt 0:04:03]} c5 {[%emt 0:01:21]} 11. Bb2 {[%emt 0:06:37]} f6 {[%emt 0:00:06]} 12. Nfd2 {[%emt 0:05:13]} Bf8 {[%emt 0:12:58]} 13. a4 {[%emt 0:04:17]} Nb8 {[%emt 0:01:10]} 14. f4 {[%emt 0:00:07]} exf4 {[%emt 0:01:00]} 15. Rxf4 {[%emt 0:00:07]} Nc6 {[%emt 0:00:03]} 16. Qh5 {[%emt 0:11:37]} g6 {[%emt 0:19:47]} 17. Qd1 {[%emt 0:10:55]} Nd4 {[%emt 0:00:33]} 18. Qf1 {[%emt 0:03:13]} Bg7 {[%emt 0:05:42]} 19. c3 {[%emt 0:01:16]} Nc6 {[%emt 0:01:14]} 20. Re1 {[%emt 0:01:46]} f5 {[%emt 0:09:56]} 21. Ne3 {[%emt 0:02:26]} Ne7 {[%emt 0:02:42]} 22. d4 {[%emt 0:04:29]} cxd4 {[%emt 0:02:34]} 23. cxd4 {[%emt 0:07:07]} Be6 {[%emt 0:00:56]} 24. Ba1 {[%emt 0:02:23]} fxe4 {[%emt 0:01:14]} 25. Rxe4 {[%emt 0:07:27]} Qd7 {[%emt 0:03:09]} 26. Nec4 {[%emt 0:05:57]} Bd5 {[%emt 0:01:22]} 27. Ne5 {[%emt 0:00:38]} Qd8 {[%emt 0:02:46]} 28. Rf4 {[%emt 0:04:02]} Rf8 {[%emt 0:00:01]} 29. Ne4 {[%emt 0:00:44]} Rxf4 {[%emt 0:01:01]} 30. Qxf4 {[%emt 0:00:02]} Qf8 {[%emt 0:00:19]} 31. Qg3 {[%emt 0:01:45]} Nf5 {[%emt 0:01:57]} 32. Qh3 {[%emt 0:00:22]} Qb4 {[%emt 0:00:35]} 33. Bc3 {[%emt 0:00:11]} Qxb3 {[%emt 0:00:03]} 34. Ng5 {[%emt 0:01:37]} Bh6 {[%emt 0:00:17]} 35. g4 {[%emt 0:00:48]} Bxg5 {[%emt 0:00:16]} 36. gxf5 {[%emt 0:00:09]} Qc2 {[%emt 0:00:40]} 37. fxg6 {[%emt 0:03:13]} hxg6 {[%emt 0:00:01]} 38. Nf7 {[%emt 0:01:46]} Bxf7 {[%emt 0:02:17]} 39. d5 {[%emt 0:00:26]} Bh4 {[%emt 0:00:19]} 40. Ba1 {[%emt 0:00:00]} Qf2+ {[%emt 0:00:00]} 0-1

[Event "VI Sunway Sitges Open 2019"]
[Site "Sitges"]
[Date "2019.12.17"]
[Round "5.25"]
[White "Peralta, Fernando"]
[Black "Kjartansson, Gudmundur"]
[Result "1-0"]
[ECO "D48"]
[WhiteElo "2577"]
[BlackElo "2448"]
[Annotator "ChessBase"]
[PlyCount "119"]
[EventDate "2019.12.13"]
[EventType "swiss"]
[EventCountry "ESP"]
[SourceTitle "playchess.com"]
[Source "ChessBase"]
[SourceQuality "1"]
[TimeControl "40/5400+30:1800+30"]

1. d4 {[%emt 0:00:00]} d5 {[%emt 0:00:00]} 2. c4 {[%emt 0:00:00]} e6 {[%emt 0:00:00]} 3. Nc3 {[%emt 0:00:24]} c6 {[%emt 0:00:00]} 4. e3 {[%emt 0:00:06]} Nf6 {[%emt 0:00:02]} 5. Nf3 {[%emt 0:00:16]} Nbd7 {[%emt 0:00:34]} 6. Bd3 {[%emt 0:00:15]} dxc4 {[%emt 0:00:07]} 7. Bxc4 {[%emt 0:00:03]} b5 {[%emt 0:00:05]} 8. Bd3 {[%emt 0:00:05]} a6 {[%emt 0:01:07]} 9. a4 {[%emt 0:01:16]} b4 {[%emt 0:00:23]} 10. Nb1 {[%emt 0:00:06]} c5 {[%emt 0:01:54]} 11. O-O {[%emt 0:00:19]} Bb7 {[%emt 0:00:41]} 12. Nbd2 {[%emt 0:00:07]} Be7 {[%emt 0:01:54]} 13. Qe2 {[%emt 0:01:02]} Qc7 {[%emt 0:02:12]} 14. Rd1 {[%emt 0:06:34]} O-O {[%emt 0:07:58]} 15. Nc4 {[%emt 0:14:17]} Be4 {[%emt 0:17:08]} 16. Bd2 {[%emt 0:00:00]} Rfd8 {[%emt 0:09:07]} 17. Bxe4 {[%emt 0:00:00]} Nxe4 {[%emt 0:00:06]} 18. Be1 {[%emt 0:00:00]} Rac8 {[%emt 0:05:15]} 19. Rac1 {[%emt 0:00:17]} Qc6 {[%emt 0:08:32]} 20. Nfe5 {[%emt 0:06:09]} Nxe5 {[%emt 0:05:43]} 21. dxe5 {[%emt 0:01:29]} f5 {[%emt 0:00:53]} 22. exf6 {[%emt 0:04:00]} Bxf6 {[%emt 0:15:54]} 23. f3 {[%emt 0:10:20]} Nd6 {[%emt 0:00:00]} 24. Nxd6 {[%emt 0:05:09]} Rxd6 {[%emt 0:00:00]} 25. Rxd6 {[%emt 0:02:07]} Qxd6 {[%emt 0:00:00]} 26. Bxb4 {[%emt 0:00:22]} Qd7 {[%emt 0:02:51]} 27. Bxc5 {[%emt 0:23:35]} Qxa4 {[%emt 0:00:42]} 28. b4 {[%emt 0:00:52]} Rd8 {[%emt 0:10:42]} 29. h3 {[%emt 0:04:19]} Kf7 {[%emt 0:05:43]} 30. f4 {[%emt 0:10:17]} Qc6 {[%emt 0:01:50]} 31. Kh2 {[%emt 0:01:01]} Kg8 {[%emt 0:00:23]} 32. Rc2 {[%emt 0:04:25]} Qe4 {[%emt 0:02:08]} 33. Qc4 {[%emt 0:04:13]} Qxc4 {[%emt 0:00:10]} 34. Rxc4 {[%emt 0:00:04]} Rc8 {[%emt 0:00:17]} 35. Rc2 {[%emt 0:03:14]} a5 {[%emt 0:01:41]} 36. bxa5 {[%emt 0:00:39]} Be7 {[%emt 0:00:06]} 37. a6 {[%emt 0:00:30]} Bxc5 {[%emt 0:00:31]} 38. a7 {[%emt 0:00:29]} Ra8 {[%emt 0:00:04]} 39. Rxc5 {[%emt 0:00:04]} Rxa7 {[%emt 0:00:03]} 40. g4 {[%emt 0:00:00]} h6 {[%emt 0:00:00]} 41. Kg3 {[%emt 0:04:34]} Kf7 42. h4 {[%emt 0:09:55]} g6 {[%emt 0:11:30]} 43. h5 {[%emt 0:01:58]} gxh5 {[%emt 0:07:14]} 44. Rxh5 {[%emt 0:00:26]} Kg6 {[%emt 0:00:50]} 45. Re5 {[%emt 0:01:44]} Kf6 {[%emt 0:00:36]} 46. Rh5 {[%emt 0:00:12]} Kg6 {[%emt 0:00:00]} 47. Rb5 {[%emt 0:00:01]} Ra6 48. Kf3 {[%emt 0:03:31]} Ra4 {[%emt 0:13:03]} 49. Rb6 {[%emt 0:03:53]} Kf7 {[%emt 0:03:33]} 50. f5 {[%emt 0:07:46]} h5 {[%emt 0:00:00]} 51. Rxe6 {[%emt 0:00:50]} Rxg4 {[%emt 0:00:00]} 52. Rh6 {[%emt 0:00:39]} Rh4 53. e4 {[%emt 0:00:30]} Kg7 {[%emt 0:00:20]} 54. Rg6+ {[%emt 0:00:44]} Kf7 55. e5 {[%emt 0:00:44]} Ra4 56. e6+ {[%emt 0:00:56]} Ke7 {[%emt 0:00:53]} 57. Rg7+ {[%emt 0:00:34]} Kd6 {[%emt 0:00:16]} 58. Rd7+ {[%emt 0:01:19]} Ke5 59. e7 {[%emt 0:00:00]} Rf4+ {[%emt 0:00:13]} 60. Kg2 {[%emt 0:00:21] Kd5} 1-0